lending/lending_fUSD_20260306
["ID","MTS","AMOUNT","RATE_DAILY","PERIOD"]
[407754018,1772761838357,-487.0,0.00017628,2]
[407754019,1772761838367,-487.0,0.00017628,2]
[407754020,1772761838376,-487.0,0.00017628,2]
[407754021,1772761838386,-487.0,0.00017628,2]
[407754022,1772761838395,-487.0,0.00017628,2]
[407754023,1772761838405,-487.0,0.00017628,2]
[407754024,1772761838415,-487.0,0.00017628,2]
[407754025,1772761838425,-877.67,0.00017628,2]
[407754026,1772761838435,-152.0,0.00017631,5]
[407754027,1772761838445,-7979.49,0.00017728,2]
[407754028,1772761838455,-7288.86,0.00017728,2]
[407754029,1772761838465,-150.99,0.00017728,2]
[407754030,1772761838475,-9999.99,0.00017728,2]
[407754031,1772761838484,-4343.34,0.00017728,2]
[407754032,1772761838494,-9999.99,0.00017728,2]
[407754033,1772761838504,-2989.5,0.00017728,2]
[407754034,1772761838516,-135207.28,0.00017728,2]
[407754035,1772761838525,-9999.99,0.00017728,2]
[407754036,1772761838534,-150.99,0.00017728,2]
[407754037,1772761838544,-9999.99,0.00017728,2]
[407754038,1772761838554,-7582.43,0.00017728,2]
[407754039,1772761838563,-7320.46,0.00017728,2]
[407754040,1772761838572,-152.0,0.00017737,6]
[407754041,1772761838582,-4028.36109677,0.00017794,2]
[407754042,1772761838591,-5000.0,0.00017839,2]
[407754043,1772761838600,-25128.4519,0.00017839,2]
[407754044,1772761838609,-499.99,0.00017839,2]
[407754045,1772761838618,-299.99,0.00017839,4]
[407754046,1772761838627,-3426.56,0.00017839,2]
[407754047,1772761838636,-516.46,0.00017839,2]
[407754048,1772761838645,-167.56657519,0.00017839,2]
[407754049,1772761838655,-152.0,0.00017843,7]
[407754050,1772761838665,-763.07581658,0.00017846,2]
[407754051,1772761838674,-1126.31333118,0.00017869,2]
[407754052,1772761838684,-156.49,0.0001787,2]
[407754053,1772761838693,-1528.17,0.00017902,2]
[407754054,1772761838702,-151.0,0.00017928,2]
[407754055,1772761838716,-151.0,0.00017928,2]
[407754056,1772761838725,-164.46815031,0.00017928,2]
[407754057,1772761838735,-500.0,0.00017928,2]
[407754058,1772761838745,-500.0,0.00017928,2]
[407754059,1772761838754,-357.60188806,0.00017928,2]
[407754060,1772761838764,-3595.1870596,0.00017928,2]
[407754061,1772761838773,-1113.381,0.00017938,2]
[407754062,1772761838783,-238.44048459,0.00017938,2]
[407754063,1772761838793,-180.0,0.00017938,2]
[407754064,1772761838802,-153.81667843,0.00017938,2]
[407754065,1772761838812,-1000.0,0.00017939,2]
[407754066,1772761838821,-574.9336,0.00017939,2]
[407754067,1772761838831,-200.0,0.00017939,2]
[407754068,1772761838844,-263685.5509224,0.00017942,2]
[407754069,1772761838854,-1253.82545788,0.00017946,2]
[407754070,1772761838863,-152.0,0.0001795,8]
[407754071,1772761838874,-224.04927466,0.00018005,2]
[407754072,1772761838884,-152.0,0.00018056,9]
[407754073,1772761838893,-4028.36109677,0.00018057,2]
[407754074,1772761838903,-423.65087692,0.00018068,2]
[407754075,1772761838913,-1500.0,0.00018082,7]
[407754076,1772761838923,-190.38,0.0001809,2]
[407754077,1772761838933,-156.49,0.0001814,2]
[407754078,1772761838943,-152.0,0.00018162,10]
[407754079,1772761838952,-167.56657515,0.00018251,2]
[407754080,1772761838961,-152.0,0.00018269,11]
[407754081,1772761838969,-423.65087692,0.00018297,2]
[407754082,1772761838979,-4028.36109677,0.00018321,2]
[407754083,1772761838987,-500.0,0.00018356,7]
[407754084,1772761838996,-800.0,0.00018356,7]
[407754085,1772761839007,-152.0,0.00018375,12]
[407754086,1772761839016,-231.0,0.000184,2]
[407754087,1772761839026,-156.49,0.0001841,2]
[407754088,1772761839035,-253.49447439,0.00018469,2]
[407754089,1772761839044,-250.0,0.00018469,2]
[407754090,1772761839376,-2500.0,0.00018469,2]
[407754091,1772761839387,-5000.0,0.00018469,2]
[407754092,1772761839397,-224.04927466,0.00018479,2]
[407754093,1772761839407,-152.0,0.00018482,13]
[407754094,1772761839417,-423.65087692,0.00018526,2]
[407754095,1772761839427,-4028.36109677,0.00018584,2]
[407754096,1772761839437,-152.0,0.00018588,14]
[407754097,1772761839446,-167.56657515,0.00018663,2]
[407754098,1772761839455,-156.49,0.0001868,2]
[407754099,1772761839466,-152.0,0.00018694,15]
[407754100,1772761839475,-423.65087692,0.00018755,2]
[407754101,1772761839484,-152.0,0.00018801,16]
[407754102,1772761839495,-4028.36109677,0.00018847,2]
[407754103,1772761839505,-763.07581658,0.00018873,2]
[407754104,1772761839515,-152.0,0.00018907,17]
[407754105,1772761839524,-156.49,0.0001895,2]
[407754106,1772761839534,-224.04927466,0.00018952,2]
[407754107,1772761839543,-423.65087692,0.00018984,2]
[407754108,1772761839553,-1000.0,0.00018999,2]
[407754109,1772761839562,-500.0,0.00018999,2]
[407754110,1772761839572,-500.0,0.00018999,2]
[407754111,1772761839581,-550.66502263,0.00018999,2]
[407754112,1772761839590,-500.0,0.00018999,2]
[407754113,1772761839600,-500.0,0.00018999,2]
[407754114,1772761839609,-500.0,0.00018999,2]
[407754115,1772761839618,-500.0,0.00018999,2]
[407754116,1772761839637,-500.0,0.00018999,2]
[407754117,1772761839647,-500.0,0.00018999,2]
[407754118,1772761839657,-500.0,0.00018999,2]
[407754119,1772761839669,-155.25791837,0.00018999,2]
[407754120,1772761839681,-500.0,0.00018999,2]
[407754121,1772761839692,-630.93360603,0.00018999,2]
[407754122,1772761839703,-693.3919763,0.00018999,2]
[407754123,1772761839714,-279.56962655,0.00018999,2]
[407754124,1772761839727,-270.00176078,0.00018999,2]
[407754125,1772761839736,-174.61919141,0.00018999,2]
[407754126,1772761839745,-503.01170887,0.00018999,2]
[407754127,1772761839755,-369.88455668,0.00018999,2]
[407754128,1772761839767,-184.4003812,0.00019,2]
[407754129,1772761839777,-168.22046231,0.00019,2]
[407754130,1772761839786,-152.0,0.00019013,18]
[407754131,1772761839796,-864.0,0.0001904,2]
[407754132,1772761839806,-719.04747942,0.00019054,2]
[407754133,1772761839819,-167.56657515,0.00019076,2]
[407754134,1772761839831,-745.65223616,0.00019109,2]
[407754136,1772761839845,-4028.36109677,0.0001911,2]
[407754137,1772761839857,-152.0,0.0001912,19]
[407754138,1772761839868,-773.2413689,0.00019164,2]
[407754139,1772761839881,-1500.0,0.00019178,7]
[407754142,1772761839891,-2000.0,0.000192,2]
[407754143,1772761839902,-423.65087692,0.00019213,2]
[407754144,1772761839916,-801.85129955,0.00019219,2]
[407754145,1772761839928,-156.49,0.0001922,2]
[407754146,1772761839938,-152.0,0.00019226,20]
[407754147,1772761839947,-420.0,0.0001924,2]
[407754148,1772761839958,-882.524513,0.00019265,2]
[407754149,1772761839968,-831.51979763,0.00019274,2]
[407754150,1772761839980,-1259.9,0.00019285,2]
[407754151,1772761839991,-1000.0,0.00019294,2]
[407754152,1772761840002,-862.28603014,0.00019329,2]
[407754153,1772761840015,-152.0,0.00019332,21]
[407754154,1772761840024,-1680.0,0.00019335,2]
[407754155,1772761840036,-4028.36109677,0.00019374,2]
[407754156,1772761840047,-894.19061326,0.00019384,2]
[407754157,1772761840059,-3517.111,0.0001939,2]
[407754158,1772761840070,-1341.0,0.0001939,2]
[407754159,1772761840080,-619.0,0.0001939,2]
[407754160,1772761840092,-1042.0,0.0001939,2]
[407754161,1772761840105,-1282.924,0.0001939,2]
[407754162,1772761840115,-414.0,0.0001939,2]
[407754163,1772761840125,-3746.0,0.0001939,2]
[407754164,1772761840135,-224.04927466,0.00019426,2]
[407754165,1772761840145,-172.70211477,0.00019429,2]
[407754166,1772761840156,-160.0,0.00019429,2]
[407754167,1772761840167,-152.0,0.00019439,22]
[407754168,1772761840178,-927.27566595,0.00019439,2]
[407754169,1772761840187,-423.65087692,0.00019442,2]
[407754170,1772761840197,-500.0,0.00019452,7]
[407754171,1772761840207,-800.0,0.00019452,7]
[407754172,1772761840216,-350.0,0.00019486,2]
[407754173,1772761840225,-167.56657515,0.00019488,2]
[407754174,1772761840235,-156.49,0.0001949,2]
[407754175,1772761840244,-961.58486559,0.00019494,2]
[407754176,1772761840256,-152.0,0.00019545,23]
[407754177,1772761840266,-1000.0,0.00019547,2]
[407754178,1772761840275,-179.72596795,0.00019547,2]
[407754179,1772761840286,-997.16350561,0.00019549,2]
[407754180,1772761840299,-1000.0,0.00019568,2]
[407754181,1772761840309,-500.0,0.00019589,2]
[407754182,1772761840319,-500.0,0.00019589,2]
[407754183,1772761840330,-500.0,0.00019589,2]
[407754184,1772761840339,-500.0,0.00019589,2]
[407754185,1772761840350,-500.0,0.00019589,2]
[407754186,1772761840360,-229.02014047,0.00019589,2]
[407754187,1772761840371,-178.98075658,0.000196,2]
[407754188,1772761840381,-4028.36109677,0.00019637,2]
[407754189,1772761840390,-152.0,0.00019652,24]
[407754190,1772761840401,-423.65087692,0.00019671,2]
[407754191,1772761840412,-847.0,0.0001968,2]
[407754192,1772761840424,-847.0,0.0001968,2]
[407754193,1772761840434,-222.54445228,0.00019732,2]
[407754194,1772761840446,-150.0,0.00019747,2]
[407754195,1772761840457,-152.0,0.00019758,25]
[407754196,1772761840467,-156.49,0.0001976,2]
[407754197,1772761840478,-20100.0,0.000198,2]
[407754198,1772761840490,-2000.0,0.00019821,2]
[407754199,1772761840499,-500.0,0.0001984,2]
[407754200,1772761840509,-1000.0,0.00019842,2]
[407754201,1772761840518,-152.0,0.00019864,26]
[407754202,1772761840530,-25000.0,0.00019865,3]
[407754203,1772761840540,-172.70211477,0.00019865,3]
[407754204,1772761840551,-25000.0,0.00019874,3]
[407754205,1772761840562,-172.70211477,0.00019874,3]
[407754206,1772761840573,-25000.0,0.00019882,3]
[407754207,1772761840584,-25000.0,0.00019891,3]
[407754209,1772761840593,-172.70211477,0.00019891,3]
[407754210,1772761840604,-25000.0,0.000199,3]
[407754212,1772761840614,-7863.9011,0.000199,2]
[407754214,1772761840625,-15764.58730765,0.000199,3]
[407754215,1772761840636,-423.65087692,0.000199,2]
[407754216,1772761840648,-845.16,0.000199,2]
[407754217,1772761840658,-167.56657515,0.000199,2]
[407754218,1772761840668,-224.04927466,0.000199,2]
[407754219,1772761840679,-4028.36109677,0.000199,2]
[407754220,1772761840689,-763.07581658,0.000199,2]
[407754221,1772761840702,-12635.48,0.000199,2]
[407754222,1772761840712,-1336.0,0.000199,2]
[407754223,1772761840722,-1934.0,0.000199,2]
[407754224,1772761840731,-4358.7159439,0.00019934,2]
[407754225,1772761840741,-152.0,0.00019971,27]
[407754226,1772761840750,-500.0,0.00019973,2]
[407754227,1772761840759,-500.0,0.00019973,2]
[407754228,1772761840769,-500.0,0.00019973,2]
[407754229,1772761840778,-547.9842787,0.00019973,2]
[407754230,1772761840787,-500.0,0.00019973,2]
[407754231,1772761840797,-510.95525373,0.00019973,2]
[407754232,1772761840806,-500.0,0.00019973,2]
[407754233,1772761840815,-500.30027697,0.00019973,2]
[407754234,1772761840825,-229.79782269,0.00019973,2]
[407754235,1772761840835,-500.52071293,0.00019973,2]
[407754236,1772761840845,-500.0,0.00019973,2]
[407754237,1772761840855,-500.0,0.00019973,2]
[407754238,1772761840864,-168.9717679,0.00019973,2]
[407754239,1772761840875,-500.0,0.00019973,2]
[407754240,1772761840884,-331.25166911,0.00019973,2]
[407754241,1772761840894,-500.0,0.00019973,2]
[407754242,1772761840905,-500.0,0.00019973,2]
[407754243,1772761840914,-500.0,0.00019973,2]
[407754244,1772761840923,-500.0,0.00019973,2]
[407754245,1772761840932,-546.12894098,0.00019973,2]
[407754246,1772761840941,-500.0,0.00019973,2]
[407754247,1772761840950,-500.0,0.00019973,2]
[407754248,1772761840959,-500.0,0.00019973,2]
[407754249,1772761840968,-500.0,0.00019973,2]
[407754250,1772761840977,-500.0,0.00019973,2]
[407754251,1772761840986,-500.0,0.00019973,2]
[407754252,1772761840995,-500.46240701,0.00019973,2]
[407754253,1772761841005,-500.0,0.00019973,2]
[407754254,1772761841014,-500.0,0.00019973,2]
[407754255,1772761841023,-500.0,0.00019973,2]
[407754256,1772761841032,-500.0,0.00019973,2]
[407754257,1772761841041,-500.0,0.00019973,2]
[407754258,1772761841050,-500.0,0.00019973,2]
[407754259,1772761841059,-500.0,0.00019973,2]
[407754260,1772761841070,-167.04,0.00019973,2]
[407754261,1772761841079,-394.11456994,0.00019997,2]
[407754262,1772761841088,-233.18387022,0.00019997,2]
[407754263,1772761841097,-150.0,0.00019999,2]
[407754264,1772761841106,-160.04502343,0.00019999,2]
[407754265,1772761841115,-1823203.31927653,0.0002,2]
[407754266,1772761841124,-209.23668347,0.0002,120]
[407754267,1772761841133,-475362.09657805,0.0002,2]
[407754268,1772761841244,-276.871998,0.00018208,2]
[407754269,1772761841259,-849.44133318,0.00018208,2]
[407754270,1772761841269,-89548.10665042,0.0002,2]
[407754271,1772761841280,-11695.78535035,0.0002,2]
[407754272,1772761841302,-2075.5,0.0002,2]
[407754273,1772761841314,-4353.0468707,0.0002,2]
[407754274,1772761841325,-505.0,0.0002,2]
[407754282,1772761843262,-12940.55648981,0.0002,2]
[407754283,1772761843273,-1036.94153083,0.0002,2]
[407754284,1772761843285,-16512.63184029,0.0002,2]
[407754285,1772761843295,-7595.19730418,0.0002,2]
[407754286,1772761843314,-942.66157066,0.0001939,2]
[407754287,1772761844418,-1126.31333118,0.00018546,2]
[407754288,1772761844427,-3974.62266709,0.0001939,2]
[407754289,1772761844439,-1092.52976225,0.0001939,2]
[407754290,1772761844449,-2385.48520591,0.0002,2]
[407754291,1772761844460,-210155.23525496,0.0002,2]
[407754292,1772761844472,-1162.02082628,0.0002,2]
[407754293,1772761844484,-469.63163265,0.0002,2]
[407754299,1772761845737,-1105.91058353,0.000196,2]
[407754300,1772761845746,-25763.27832105,0.00019999,2]
[407754301,1772761845758,-1045.18415442,0.00019999,2]
[407754302,1772761845901,-943.55089483,0.00019999,2]
[407754303,1772761845914,-726.65367492,0.00019999,2]
[407754304,1772761845956,-655.92258569,0.00019999,2]
[407754305,1772761846010,-861.89344822,0.00019999,2]
[407754308,1772761940336,555.89930309,0.00012,2]
[407754309,1772761940527,309.96698731,0.00012,2]
[407754319,1772762143432,166.2,8.972e-05,2]
[407754333,1772762453806,2032.80531913,0.000162,5]
[407754335,1772762506503,504.85353725,0.00013,15]
[407754336,1772762513103,1638.94,0.00013996,2]
[407754337,1772762829127,-240.77,0.00016411,2]
[407754338,1772762829149,-200.0,0.00016477,2]
[407754339,1772762829173,-1196.92579004,0.00016595,2]
[407754343,1772762971110,1051.773585,0.00015221,2]
[407754344,1772762993930,1600.0,0.00016201,2]
[407754349,1772763031840,-200.0,0.00016442,2]
[407754352,1772763031850,-303.07420996,0.00016595,2]
[407754354,1772763031859,-176.7501864,0.00016636,2]
[407754356,1772763031869,-253.49447439,0.00016665,2]
[407754359,1772763031878,-1200.0,0.00016735,2]
[407754362,1772763031888,-385.46619829,0.00016736,2]
[407754365,1772763031906,-6297.05380171,0.00016736,2]
[407754366,1772763031916,-159.1,0.0001679,2]
[407754367,1772763031925,-227.25135772,0.00016799,2]
[407754368,1772763031934,-1346.05535973,0.00016799,2]
[407754369,1772763031944,-627.44401107,0.00016799,2]
[407754370,1772763031953,-1870.1,0.00016822,2]
[407754371,1772763031963,-150.0,0.00016832,30]
[407754372,1772763031972,-1000.0,0.00016898,2]
[407754373,1772763031981,-7210.2943654,0.00016899,2]
[407754374,1772763031993,-911.54092728,0.00016899,2]
[407754375,1772763032005,-739.83242181,0.00016899,2]
[407754376,1772763032016,-1703.04317917,0.00016899,2]
[407754377,1772763032029,-2920.0,0.00016899,2]
[407754378,1772763032040,-2410.62805522,0.00016899,2]
[407754379,1772763032051,-716.51117773,0.00016899,2]
[407754380,1772763032071,-391637.81696143,0.00016899,2]
[407754381,1772763032084,-465.18605663,0.00016899,2]
[407754382,1772763032095,-8113.46528437,0.00016899,2]
[407754383,1772763032107,-1422.63899574,0.00016899,2]
[407754400,1772763038055,-266.36566304,0.00016898,2]
[407754401,1772763038065,-408.85099927,0.00016898,2]
[407754402,1772763038075,-324.78333769,0.00016899,2]
[407754403,1772763038086,-2474.53704796,0.00016899,2]
[407754404,1772763038097,-2078949.72218957,0.00016899,2]
[407754405,1772763038106,-7310.80939799,0.00016899,2]
[407754406,1772763038115,-1001.0505,0.000169,2]
[407754407,1772763038124,-175.56047754,0.000169,2]
[407754408,1772763038134,-1702.64831363,0.000169,2]
[407754409,1772763038143,-8896.77320765,0.00016999,2]
[407754410,1772763038153,-7320.46,0.00016999,2]
[407754411,1772763038164,-299.99,0.00016999,4]
[407754412,1772763038173,-9999.99,0.00016999,2]
[407754413,1772763038183,-709.23,0.00016999,2]
[407754414,1772763038192,-33119.72,0.00016999,2]
[407754415,1772763038203,-7288.86,0.00016999,2]
[407754416,1772763038212,-499.99,0.00016999,2]
[407754418,1772763038221,-3426.56,0.00016999,2]
[407754419,1772763038232,-9999.99,0.00016999,2]
[407754421,1772763038242,-9999.99,0.00016999,2]
[407754423,1772763038251,-157919.68,0.00016999,2]
[407754425,1772763038260,-516.46,0.00016999,2]
[407754427,1772763038269,-150.99,0.00016999,2]
[407754429,1772763038278,-9999.99,0.00016999,2]
[407754431,1772763038288,-312.02,0.00016999,2]
[407754433,1772763038298,-7582.43,0.00016999,2]
[407754436,1772763038308,-4999.99,0.00016999,2]
[407754438,1772763038317,-9999.99,0.00016999,2]
[407754440,1772763038327,-8997.9,0.00016999,2]
[407754442,1772763038336,-999.99,0.00016999,2]
[407754444,1772763038345,-2989.5,0.00016999,2]
[407754446,1772763038354,-150.99,0.00016999,2]
[407754448,1772763038363,-71267.10099258,0.00017,2]
[407754450,1772763038372,-152.09858182,0.00017,2]
[407754451,1772763038381,-160.75,0.0001706,2]
[407754453,1772763038390,-159.1,0.0001706,2]
[407754455,1772763038399,-19864.4937069,0.0001711,2]
[407754457,1772763038408,-627.44401107,0.00017144,2]
[407754459,1772763038417,-7310.8093979,0.00017232,2]
[407754461,1772763038427,-25934.18969531,0.00017235,2]
[407754463,1772763038436,-1208.138,0.00017235,2]
[407754465,1772763038445,-1346.05535966,0.00017242,2]
[407754468,1772763038455,-1870.1,0.00017243,2]
[407754470,1772763038464,-240.77,0.00017323,2]
[407754472,1772763038474,-159.1,0.0001733,2]
[407754473,1772763038483,-152.0,0.00017349,3]
[407754474,1772763038492,-227.25135769,0.00017419,2]
[407754475,1772763038502,-574.9336,0.00017428,2]
[407754476,1772763038511,-2500.0,0.00017428,2]
[407754477,1772763038520,-627.44401107,0.00017488,2]
[407754478,1772763038530,-1000.0,0.00017528,2]
[407754479,1772763038540,-25128.4519,0.00017528,2]
[407754480,1772763038550,-5000.0,0.00017528,2]
[407754481,1772763038559,-266.19192811,0.00017528,2]
[407754482,1772763038568,-168.48387276,0.00017528,2]
[407754483,1772763038577,-7310.8093979,0.00017566,2]
[407754484,1772763038587,-152.0,0.0001758,4]
[407754485,1772763038596,-23104.89,0.00017589,2]
[407754486,1772763038605,-159.1,0.000176,2]
[407754487,1772763038615,-202.8847235,0.00017617,2]
[407754488,1772763038624,-500.0,0.00017617,2]
[407754489,1772763038633,-500.0,0.00017617,2]
[407754490,1772763038643,-357.60188806,0.00017617,2]
[407754491,1772763038652,-388.64512715,0.00017617,2]
[407754492,1772763038662,-151.0,0.00017617,2]
[407754493,1772763038672,-151.0,0.00017617,2]
[407754494,1772763038681,-151.0,0.00017617,2]
[407754495,1772763038691,-164.46815031,0.00017617,2]
[407754496,1772763038701,-500.0,0.00017627,2]
[407754497,1772763038710,-500.0,0.00017627,2]
[407754498,1772763038719,-500.0,0.00017627,2]
[407754499,1772763038729,-500.0,0.00017627,2]
[407754500,1772763038739,-501.89301676,0.00017627,2]
[407754502,1772763038749,-487.0,0.00017628,2]
[407754504,1772763038758,-487.0,0.00017628,2]
[407754506,1772763038768,-487.0,0.00017628,2]
[407754508,1772763038777,-487.0,0.00017628,2]
[407754510,1772763038787,-487.0,0.00017628,2]
[407754512,1772763038796,-487.0,0.00017628,2]
[407754514,1772763038805,-487.0,0.00017628,2]
[407754516,1772763038815,-487.0,0.00017628,2]
[407754518,1772763038824,-877.67,0.00017628,2]
[407754520,1772763038833,-1870.1,0.00017663,2]
[407754522,1772763038843,-1346.05535966,0.00017685,2]
[407754524,1772763038852,-10058.28,0.00017728,2]
[407754526,1772763038861,-1352.88836969,0.00017779,2]
[407754528,1772763038871,-242.34,0.00017804,2]
[407754530,1772763038880,-152.0,0.00017811,5]
[407754532,1772763038890,-627.44401107,0.00017833,2]
[407754534,1772763038900,-381.27690635,0.00017853,2]
[407754536,1772763038909,-736.41,0.00017869,2]
[407754538,1772763038919,-159.1,0.0001787,2]
[407754541,1772763038929,-7310.8093979,0.00017899,2]
[407754543,1772763038938,-311.10483949,0.00017922,2]
[407754545,1772763038947,-168.48387271,0.00017923,2]
[407754547,1772763038957,-514.95220518,0.00017938,2]
[407754549,1772763038966,-166.2,0.00017944,2]
[407754551,1772763038976,-5929.9,0.00017999,2]
[407754552,1772763038989,-346.71748111,0.00018028,2]
[407754554,1772763038998,-227.25135769,0.00018039,2]
[407754556,1772763039007,-152.0,0.00018042,6]
[407754558,1772763039016,-5000.0,0.00018053,2]
[407754560,1772763039026,-1500.0,0.00018082,7]
[407754563,1772763039036,-1870.1,0.00018084,2]
[407754565,1772763039045,-2500.0,0.00018086,2]
[407754567,1772763039055,-1268.89801234,0.00018086,2]
[407754569,1772763039069,-225.54,0.00018127,2]
[407754571,1772763039078,-1346.05535966,0.00018128,2]
[407754573,1772763039088,-159.1,0.0001814,2]
[407754575,1772763039098,-627.44401107,0.00018177,2]
[407754577,1772763039108,-1600.0,0.00018226,2]
[407754579,1772763039116,-7310.8093979,0.00018233,2]
[407754581,1772763039126,-240.77,0.00018235,2]
[407754583,1772763039135,-1780.3274437,0.00018254,2]
[407754585,1772763039144,-250.0,0.00018254,2]
[407754587,1772763039155,-152.0,0.00018273,7]
[407754589,1772763039164,-500.0,0.00018274,2]
[407754591,1772763039173,-168.48387271,0.00018319,2]
[407754593,1772763039183,-500.0,0.00018356,7]
[407754595,1772763039196,-800.0,0.00018356,7]
[407754597,1772763039208,-1680.0,0.00018374,2]
[407754599,1772763039216,-160.0,0.000184,2]
[407754601,1772763039228,-847.0,0.000184,2]
[407754603,1772763039238,-160.0,0.000184,2]
[407754605,1772763039248,-1702.64831361,0.000184,2]
[407754607,1772763039257,-159.1,0.0001841,2]
[407754609,1772763039266,-1000.0,0.00018448,2]
[407754611,1772763039276,-152.0,0.00018504,8]
[407754613,1772763039285,-1870.1,0.00018504,2]
[407754615,1772763039294,-627.44401107,0.00018522,2]
[407754617,1772763039303,-7310.8093979,0.00018566,2]
[407754619,1772763039312,-1346.05535966,0.00018571,2]
[407754621,1772763039321,-227.25135769,0.0001866,2]
[407754623,1772763039330,-159.1,0.0001868,2]
[407754625,1772763039339,-266.19192809,0.00018714,2]
[407754627,1772763039348,-168.48387271,0.00018714,2]
[407754629,1772763039357,-2803.0,0.0001872,2]
[407754631,1772763039366,-152.0,0.00018735,9]
[407754633,1772763039374,-2479.0,0.00018765,2]
[407754635,1772763039384,-627.44401107,0.00018866,2]
[407754637,1772763039393,-7310.8093979,0.000189,2]
[407754639,1772763039403,-685.36,0.00018927,2]
[407754642,1772763039413,-1282.924,0.00018932,2]
[407754644,1772763039423,-1219.676,0.00018932,2]
[407754646,1772763039432,-922.0,0.00018932,2]
[407754648,1772763039442,-159.1,0.0001895,2]
[407754650,1772763039451,-152.0,0.00018966,10]
[407754651,1772763039460,-151.0,0.00018999,2]
[407754653,1772763039469,-156.587,0.00018999,2]
[407754655,1772763039478,-223.10716334,0.00018999,2]
[407754657,1772763039487,-151.25613122,0.00018999,2]
[407754659,1772763039496,-250.0,0.00018999,2]
[407754661,1772763039505,-500.0,0.00018999,2]
[407754663,1772763039515,-151.0,0.00018999,2]
[407754665,1772763039524,-500.0,0.00018999,2]
[407754667,1772763039533,-151.0,0.00018999,2]
[407754669,1772763039542,-250.0,0.00018999,2]
[407754671,1772763039551,-721.12765535,0.00018999,2]
[407754673,1772763039561,-151.0,0.00018999,2]
[407754675,1772763039570,-250.0,0.00018999,2]
[407754677,1772763039578,-500.0,0.00018999,2]
[407754679,1772763039587,-151.0,0.00018999,2]
[407754681,1772763039596,-250.0,0.00018999,2]
[407754683,1772763039605,-500.0,0.00018999,2]
[407754685,1772763039614,-250.0,0.00018999,2]
[407754687,1772763039623,-151.0,0.00018999,2]
[407754689,1772763039631,-500.0,0.00018999,2]
[407754691,1772763039640,-151.0,0.00018999,2]
[407754693,1772763039649,-250.0,0.00018999,2]
[407754695,1772763039658,-500.0,0.00018999,2]
[407754697,1772763039667,-151.0,0.00018999,2]
[407754699,1772763039676,-250.0,0.00018999,2]
[407754701,1772763039685,-500.0,0.00018999,2]
[407754703,1772763039694,-300.0,0.00018999,2]
[407754705,1772763039703,-250.0,0.00018999,2]
[407754707,1772763039713,-151.0,0.00018999,2]
[407754709,1772763039722,-500.0,0.00018999,2]
[407754711,1772763039731,-309.621819,0.00018999,2]
[407754713,1772763039740,-151.0,0.00018999,2]
[407754715,1772763039750,-250.0,0.00018999,2]
[407754717,1772763039759,-500.0,0.00018999,2]
[407754719,1772763039769,-279.56962655,0.00018999,2]
[407754722,1772763039779,-500.0,0.00018999,2]
[407754724,1772763039790,-355.53018622,0.00018999,2]
[407754725,1772763039799,-500.0,0.00018999,2]
[407754728,1772763039809,-174.61919141,0.00018999,2]
[407754729,1772763039819,-550.66502263,0.00018999,2]
[407754731,1772763039828,-500.0,0.00018999,2]
[407754734,1772763039838,-500.0,0.00018999,2]
[407754735,1772763039847,-1000.0,0.00018999,2]
[407754738,1772763039857,-500.0,0.00018999,2]
[407754740,1772763039866,-500.0,0.00018999,2]
[407754741,1772763039876,-500.0,0.00018999,2]
[407754744,1772763039885,-500.0,0.00018999,2]